Cogmind - Beta 15 *** ADVENTURER MODE // 2025.06.09 @ 13:55:59 Player: triibiis Result: Self-destructed Performance ------------- Evolutions (1) 500 Regions Visited (2) 400 Robots Destroyed (9) 45 Value Destroyed (136) 136 Prototype IDs (0) 0 Alien Tech Used (0) 0 Bonus (0) 0 TOTAL SCORE: 1081 Bonus ------- None Cogmind --------- Core Integrity 391/400 Matter 128/300 Energy 125/125 System Corruption 0% Temperature Cool (9) Movement Rolling (95) Ox1 Location -9/Materials Parts ------- > --- POWER (1) -------- Light Ion Engine > --- PROPULSION (3) --- Wheel Wheel > --- UTILITY (2) ------ Large Storage Unit Visual Processing Unit > --- WEAPON (3) ------- Beam Cannon Grenade Launcher > --- INVENTORY (15) --- Light Ion Engine Light Treads Light Treads Signal Interpreter ECM Suite Field Recycling Unit (0) Medium Laser Beam Cannon Mining Laser Peak State ------------ > --- POWER ------------ Light Ion Engine > --- PROPULSION ------- Wheel Wheel > --- UTILITY ---------- Large Storage Unit Visual Processing Unit > --- WEAPON ----------- Beam Cannon Grenade Launcher > --- INVENTORY -------- Light Ion Engine Light Treads Light Treads Signal Interpreter ECM Suite Field Recycling Unit Medium Laser Beam Cannon Mining Laser [Rating: 9] Favorites ----------- Power Light Ion Engine Engine Light Ion Engine Propulsion Wheel Wheel Wheel Utility Visual Processing Unit Storage Large Storage Unit Processor Visual Processing Unit Weapon Grenade Launcher Energy Gun Medium Laser Energy Cannon Beam Cannon Ballistic Gun Light Assault Rifle Launcher Grenade Launcher Build | -11 -10 -9 ------- Run | Yrd Mat Mat Slots Evolved 2 | . . 2 Power . | . . . Propulsion 1 | . . 1 Utility . | . . . Weapon 1 | . . 1 Parts Attached 10 | 6 4 . Power 1 | 1 . . Engine 1 | 1 . . Core . | . . . Reactor . | . . . Propulsion 2 | 2 . . Treads . | . . . Leg . | . . . Wheel 2 | 2 . . Hover . | . . . Flight . | . . . Utility 3 | 1 2 . Device . | . . . Storage 2 | 1 1 . Processor 1 | . 1 . Hackware . | . . . Protection . | . . . Artifact . | . . . Weapon 4 | 2 2 . Energy Gun 1 | 1 . . Energy Cannon 1 | . 1 . Ballistic Gun 1 | 1 . . Ballistic Cannon . | . . . Launcher 1 | . 1 . Special Weapon . | . . . Impact Weapon . | . . . Slashing Weapon . | . . . Piercing Weapon . | . . . Special Melee Weapon . | . . . Unidentified Prototypes . | . . . Parts Lost . | . . . Power . | . . . Propulsion . | . . . Utility . | . . . Weapon . | . . . Highest Loss Streak . | . . . To Critical Strikes . | . . . Average Backups 5 | 2 6 8 Power . | . 1 1 Propulsion 1 | 1 2 2 Utility . | . . 2 Weapon 1 | . 2 3 Tool/Special . | . . . Unused Backups 9 | 1 . 8 Power 1 | . . 1 Propulsion 3 | 1 . 2 Utility 2 | . . 2 Weapon 3 | . . 3 Tool/Special . | . . . Average Slot Usage (%) 92 | . 95 77 Engine 13 | . 14 11 Wheel 27 | . 28 22 Storage 13 | . 14 11 Processor 9 | . 9 11 Energy Cannon 11 | . 11 11 Ballistic Gun 2 | . 2 . Launcher 13 | . 13 11 Peak Build Rating 9 | 6 8 9 Average Rating 7 | 3 7 8 On Entrance 4 | . 6 8 Naked Turns . | . . . Heaviest Build 29 | 11 29 29 Greatest Support 20 | 20 20 20 Greatest Overweight (x) 1 | . 1 1 Average Overweight (x) . | . . 1 Largest Inventory Capacity 15 | 8 15 15 Average Capacity 12 | 7 12 15 Most Carried 9 | 4 8 9 Average Carried 5 | 2 6 8 Final Capacity 15 | 8 15 15 Final Carried 9 | 4 8 9 Class Distribution -------------------- 100% | Mutant Dominant Class ---------------- Mutant | -10/Materials Mutant | -9/Materials Resources | -11 -10 -9 ----------- Run | Yrd Mat Mat Matter Collected 230 | 170 60 . Remotely . | . . . Salvage Created 118 | . 118 . Parts 11 | . 11 . Haulers Intercepted . | . . . Recyclers Shooed . | . . . Parts Field Recycled . | . . . Retrieved Matter . | . . . Parts Self-Destructed . | . . . Prevented . | . . . Kills | -11 -10 -9 ------- Run | Yrd Mat Mat Combat Hostiles Destroyed 7 | . 7 . Cannons 1 | . 1 . AOE 6 | . 6 . Classes Destroyed 3 | . 3 . Watcher 2 | . 2 . Swarmer 6 | . 6 . Grunt 1 | . 1 . Best Kill Streak 3 | . 3 . Combat Bots Only 3 | . 3 . Max Kills in Single Turn 3 | . 3 . Gunslinging . | . . . Exploded 3 | . 3 . Melee . | . . . Uniques/NPCs Destroyed . | . . . Combat | -11 -10 -9 -------- Run | Yrd Mat Mat Hostile Shots Fired 14 | . 12 2 Missed 4 | . 4 . Hits 10 | . 8 2 Projectile 10 | . 8 2 Damage Taken 134 | . 114 20 Core 42 | . 33 9 Absorbed by Shields . | . . . Ignored by Resistances 41 | . 35 6 Core Remaining (%) 93 | 100 86 . Volleys Fired 16 | . 16 . Largest 2 | . 2 . Hottest 90 | . 90 . Shots Fired 26 | . 26 . Gun 2 | . 2 . Cannon 14 | . 14 . Launcher 10 | . 10 . Special . | . . . Kinetic 2 | . 2 . Thermal 14 | . 14 . Explosive 10 | . 10 . Electromagnetic . | . . . Robot Hit Streak 9 | . 9 . Robot Miss Streak 4 | . 4 . Penetration Max . | . . . Secondary Targets . | . . . Shots Hit Robots 16 | . 16 . Core Hits 11 | . 11 . Critical Kills . | . . . Critical Parts Destroyed . | . . . Critical Strikes . | . . . Melee Attacks . | . . . Impact . | . . . Slashing . | . . . Piercing . | . . . Sneak Attacks . | . . . Combat Hostiles . | . . . Follow-up Attacks . | . . . Damage Inflicted 599 | . 599 . Guns 6 | . 6 . Cannons 158 | . 158 . Explosions 435 | . 435 . Melee . | . . . Ramming . | . . . Kinetic 6 | . 6 . Thermal 158 | . 158 . Explosive 435 | . 435 . Electromagnetic . | . . . Impact . | . . . Slashing . | . . . Piercing . | . . . Highest Corruption 2 | . 2 . Average Corruption 1 | . 1 . Corruption Purged . | . . . Corruption Blocked . | . . . Effects 2 | . 2 . Message Errors 1 | . 1 . Data Loss (major) 1 | . 1 . Overload Shots . | . . . Overflow Damage 49 | . 49 . Projectiles 12 | . 12 . Explosions 37 | . 37 . Melee . | . . . Knockbacks . | . . . Impact . | . . . Kinetic . | . . . Secondary . | . . . Self-Inflicted Damage 54 | . 54 . Shots 3 | . 3 . Rammed . | . . . Targets Rammed . | . . . Kicked . | . . . Crushed . | . . . Highest Temperature 108 | . 108 . Average Temperature 36 | . 36 . Received Heat Transfer 27 | . 18 9 Siege Activations . | . . . Martial Activations . | . . . Shielding Activations . | . . . Robots Disrupted . | . . . Combat Hostiles . | . . . Robots Corrupted . | . . . Combat Hostiles . | . . . Parts Fried . | . . . Impact Corruptions . | . . . Robots Melted . | . . . Combat Hostiles . | . . . Parts Melted . | . . . Heat Transferred 333 | . 333 . Parts Sabotaged . | . . . Parts Stolen . | . . . Parts Stripped . | . . . Power Chain Reactions . | . . . Alert | -11 -10 -9 ------- Run | Yrd Mat Mat Maximum Alert Level . | . . . Low Security (%) 100 | 100 100 100 Level 1 . | . . . Level 2 . | . . . Level 3 . | . . . Level 4 . | . . . Level 5 . | . . . High Security . | . . . Max Security . | . . . Peak Influence 175 | . 175 37 Initial 37 | . . 37 Average 101 | . 124 29 Influence Increases 304 | . 304 . Destroy 0b10 Robot/C 140 | . 140 . Destroy 0b10 Robot/NC 10 | . 10 . Destroy Leader 24 | . 24 . Disable Machine 9 | . 9 . Destroy Structure 76 | . 76 . Lose Combat Pursuer 45 | . 45 . Influence Decreases 287 | . 200 87 Entered New Map 67 | . . 67 Time Decay 220 | . 200 20 Squads Dispatched 1 | . 1 . Investigation 1 | . 1 . Extermination . | . . . Reinforcement . | . . . Assault . | . . . Garrison . | . . . Intercept . | . . . Searches Triggered . | . . . Construction Impeded . | . . . Haulers Reinforced . | . . . Active Scanning Responses . | . . . Cargo Convoy Interrupts . | . . . Stealth | -11 -10 -9 --------- Run | Yrd Mat Mat Distress Signals 3 | . 3 . Communications Jammed . | . . . Distress Signals . | . . . Times Spotted 13 | . 12 1 Peak Tracking Total 4 | . 4 2 Tactical Retreats 1 | . 1 . Traps | -11 -10 -9 ------- Run | Yrd Mat Mat Traps Triggered 2 | . 2 . Indirectly . | . . . Trap Hack Attempts . | . . . Triggered . | . . . Disarmed . | . . . Reprogrammed . | . . . Reused . | . . . Traps Extracted . | . . . Installed . | . . . Triggered . | . . . Machines | -11 -10 -9 ---------- Run | Yrd Mat Mat Machines Disabled 1 | . 1 . Max in Single Turn 1 | . 1 . Machines Repaired . | . . . Machines Dismantled . | . . . Machines Sabotaged . | . . . Overloaded Fab Kills . | . . . Hacking | -11 -10 -9 --------- Run | Yrd Mat Mat Machines Accessed 1 | . 1 . Terminals 1 | . 1 . Fabricators . | . . . Repair Stations . | . . . Recycling Units . | . . . Scanalyzers . | . . . Garrison Access . | . . . Total Hacks 7 | . 7 . Successful 2 | . 2 . Failed 5 | . 5 . Catastrophic . | . . . Database Lockouts . | . . . Manual 1 | . 1 . Terminals 7 | . 7 . Fabricators . | . . . Repair Stations . | . . . Recycling Units . | . . . Scanalyzers . | . . . Garrison Access . | . . . Terminal Hacks 2 | . 2 . Record 2 | . 2 . Fabricator Hacks . | . . . Repair Station Hacks . | . . . Recycling Unit Hacks . | . . . Scanalyzer . | . . . Garrison Access Hacks . | . . . Unauthorized Hacks . | . . . Terminals . | . . . Fabricators . | . . . Repair Stations . | . . . Recycling Units . | . . . Scanalyzers . | . . . Garrison Access . | . . . Data Cores Recovered . | . . . Used . | . . . Hacking Detections 1 | . 1 . Full Trace Events 1 | . 1 . Feedback Events . | . . . Feedback Blocked . | . . . Robot Schematics Acquired . | . . . Robots Built . | . . . Authchips . | . . . Time . | . . . Total Robot Build Rating . | . . . Part Schematics Acquired . | . . . Parts Built . | . . . Authchips . | . . . Time . | . . . Total Part Build Rating . | . . . Parts Repaired . | . . . Time . | . . . Parts Recycled . | . . . Recycled Matter . | . . . Retrieved Matter . | . . . Retrieved Components . | . . . Parts Scanalyzed . | . . . Part Schematics Acquired . | . . . Parts Damaged . | . . . Bothacking | -11 -10 -9 ------------ Run | Yrd Mat Mat Used RIF Installer . | . . . Robots Hacked . | . . . Non-combat . | . . . Combat . | . . . Robot Hacks Applied . | . . . Relay Couplers Released . | . . . Fabnet Peak Effective % . | . . . Robots Rewired . | . . . Allies Hacked . | . . . Hacks Repelled . | . . . Allies | -11 -10 -9 -------- Run | Yrd Mat Mat Total Allies . | . . . Largest Group . | . . . Highest-Rated Group . | . . . Highest-Rated Ally . | . . . Total Orders . | . . . Ally Attacks . | . . . Total Damage . | . . . Kills . | . . . Allies Corrupted . | . . . Allies Melted . | . . . Intel | -11 -10 -9 ------- Run | Yrd Mat Mat Active Infowar (turns) 331 | . 286 45 Optics 331 | . 286 45 Robot Analysis Total . | . . . Derelict Logs Recovered . | . . . Drone Launches . | . . . Drone Recoveries . | . . . Exploration | -11 -10 -9 ------------- Run | Yrd Mat Mat Turns Passed 520 | 65 410 45 Spaces Moved 501 | 55 400 46 Core 1 | 1 . . Treads . | . . . Legs . | . . . Wheels 500 | 54 400 46 Hover . | . . . Flight . | . . . Fastest Speed 50 | 50 80 95 Average Speed 88 | 79 89 95 Slowest Speed 95 | 80 95 95 Overloaded Moves . | . . . Propulsion Burnouts . | . . . Robots Hopped . | . . . Potential Cave-ins . | . . . Cave-ins Triggered . | . . . Exploration Rate (%) 24 | 5 63 6 Regions Visited 2 Branch Regions . Pre-discovered Areas . | . . . Known Exits Taken . | . . . Unknown Exits Taken 2 | 1 1 . Scrap Searched . | . . . Spaces Dug . | . . . Terrain Destroyed 74 | . 74 . Melee . | . . . Projectile . | . . . AOE 74 | . 74 . Terrain Rammed . | . . . Walls Destroyed . | . . . Machines Disabled . | . . . Actions | -11 -10 -9 --------- Run | Yrd Mat Mat Total 547 | 73 427 47 Wait 7 | 7 . . Move 499 | 54 399 46 Hop . | . . . Pick Up 11 | 5 5 1 Fast Attach 8 | 6 2 . Attach 1 | . 1 . Detach . | . . . Swap 1 | . 1 . Drop 4 | 1 3 . Fire 16 | . 16 . Melee . | . . . Ram . | . . . Kick . | . . . Crush . | . . . Escape Stasis . | . . . Rewire . | . . . Trap . | . . . Miscellaneous . | . . . Route ------- -11/Scrapyard -10/Materials (discovered 2 exits: [*Mat] / [*Min]) -9/Materials History --------- Turn | Location | Event 17 | -11/Scrapyard | Discovered new exit (range 15) 66 | -11/Scrapyard | Entered Materials 75 | -10/Materials | Discovered new exit (range 15) 307 | -10/Materials | Build established: Mutant 461 | -10/Materials | Discovered new exit (range 12) 476 | -10/Materials | Entered another Materials area 476 | -9/Materials | Evolved 2 slots: Propulsion x1, Weapon x1 521 | -9/Materials | Self-destructed Last Messages --------------- ALERT: Suspicious activity at Terminal M002. Dispatching Investigation squad. U-05 Engineer lays Concrete. Acquired Beam Cannon. Triggered Shock Trap. The floor emits a surge of raw power. System corrupted (+1). Triggered Shock Trap. The floor emits a surge of raw power. System corrupted (+1). System corrupted: Substantial component data lost. EXIT=FOUND NP:IB4/PD#H6TUA:V&V#YHO>J6DLB# E: PARAMETERS=PROPULSION+1,WEAPON+1 LOCATION=UNKNOWN GOAL=ESCAPE K-01 Serf collects debris. Acquired Field Recycling Unit. K-01 Serf collects debris. Map ----- +----------------------------------------------------+ | ?????????????????????????????????????????????????? | | ?????????????????????????????????????????????????? | | ?????????????????????????????????????????????????? | | ?????????????????????????????????????????????????? | | ?????????????????????????????????????????????????? | | ?????????????????????????????????????????????????? | | ?????????????????????????????????????????????????? | | ?????????????????????????????????????????????????? | | ?????????????????????????????????????????????????? | | ?????????????????????????????????####????????????? | | ????????????????????????????????# ????????????? | | ????????????????????????????????# ????????????? | | ????????????????????????????????# ????????????? | | ????????????????????????????????# #????????????? | | ??????????????????????????# ??? # #????????????? | | ??????????????????????????# ??? # #????????????? | | ??????????????????????????# """ # #????????????? | | ??????????????????????????# """ # #????????????? | | ??????????????????????????# # #????????????? | | ???????????????????##?????? """ # #????????????? | | ????????????????####Y##???# """ # #????????????? | | ????????????????# ??# """ # #????????????? | | ????????????????# !!! ??? # #????????????? | | ????????????????# !! ####+### ########?????? | | ????????????????# !! # #?????? | | ????????????????+ @ #?????? | | ????????????????# """ # #?????? | | ????????????????# """ # #######+##### #?????? | | ????????????????# """?# #?# # #?????? | | ????????????????# ?# #?# # #?????? | | ?????????????????####/#??#+#?# # #?????? | | ????????????????????#s???????# #####?????? | | ????????????????????#????????# #?????????? | | ?????????????????????????????# """ """ #?????????? | | ?????????????????????????????# """ """ #?????????? | | ?????????????????????????????# """ """ #?????????? | | ?????????????????????????????###########?????????? | | ?????????????????????????????????????????????????? | | ?????????????????????????????????????????????????? | | ?????????????????????????????????????????????????? | | ?????????????????????????????????????????????????? | | ?????????????????????????????????????????????????? | | ?????????????????????????????????????????????????? | | | | | | | | | | | | | | | +----------------------------------------------------+ Best States ------------- Heat Dissipation 28 Energy Generation 10 Energy Capacity 125 Matter Stores 210 Matter Capacity 300 Sight Range 18 Terrain Scan Density 10 Resistance: KI 20 Resistance: TH 20 Resistance: EX 20 Resistance: EM 20 Resistance: I 20 Resistance: S 20 Resistance: P 20 Evasion (%) 50 Offensive Hacking 10 Item Schematics ----------------- None Robot Schematics ------------------ None Fabricated ------------ Nothing Repaired ---------- Nothing Alien Tech Used ----------------- None Achievements -------------- None Challenges ------------ None Game ------ Seed DamperDisruptionAutocannon Manual? 0 Play Time 00:06:42 Cumulative 12.2 hours Start 2025.06.09 @ 13:31:44 End 2025.06.09 @ 13:55:59 Sessions 1 Manual Loads 0 Difficulty Adventurer Special Mode None Game No. 34 Rogue 0 Adventurer 34 Explorer 0 Win Type - Total 0 Types 0/0/0/0/0/0/0/0/0/0 Lore% 15 Gallery% 14 Achievement% 17 Wizard Run 0 Options --------- Layout 1 ASCII 0 Keyboard 0 Movement Arrows Keybinds 0 Fullscreen 1 Font 36/Smallcaps Map View 50x43 Zoom Use 0% Tactical HUD 0 Map Filters NONE Filters NONE Steam 1 RUN: 2aa9e35b-9fdc-4b1c-8449-daccab0c3763